bitfinex/quotes_SOLUSD_20250616
["timestamp","ask_amount","ask_price","bid_price","bid_amount"]
[1750061570293,6.2155223,157.38,157.36,6.3548551]
[1750061570791,20.55194226,157.39,157.36,6.3548551]
[1750061574897,14.33641996,157.39,157.36,6.3548551]
[1750061575099,6.2155223,157.37,157.36,6.3548551]
[1750061575598,6.2155223,157.37,157.33,6.35606686]
[1750061575786,14.33641996,157.39,157.33,6.35606686]
[1750061575787,6.2155223,157.36,157.33,6.35606686]
[1750061577686,14.33641996,157.39,157.33,6.35606686]
[1750061577890,6.2155223,157.36,157.33,6.35606686]
[1750061578191,6.2155223,157.37,157.33,28.46175632]
[1750061578398,6.2155223,157.36,157.33,22.24623402]
[1750061579804,14.33641996,157.39,157.33,22.24623402]
[1750061580100,6.2155223,157.36,157.33,22.24623402]
[1750061581613,6.2155223,157.37,157.33,22.24623402]
[1750061582498,6.2155223,157.37,157.33,28.46175632]
[1750061583491,6.2155223,157.38,157.33,28.46175632]
[1750061583684,20.55194226,157.39,157.34,6.2155223]
[1750061584606,6.2155223,157.36,157.33,22.24623402]
[1750061585315,14.33641996,157.39,157.33,22.24623402]
[1750061585316,6.2155223,157.37,157.33,15.89016716]
[1750061585491,6.2155223,157.38,157.33,22.10568946]
[1750061585998,6.2155223,157.37,157.33,22.10568946]
[1750061587213,6.2155223,157.37,157.33,28.46175632]
[1750061589609,6.2155223,157.37,157.33,15.89016716]
[1750061590193,6.2155223,157.36,157.33,15.89016716]
[1750061590985,6.2155223,157.36,157.33,22.24623402]
[1750061592017,6.2155223,157.36,157.33,15.89016716]
[1750061592624,6.35283884,157.41,157.33,15.89016716]
[1750061592797,6.2155223,157.36,157.33,15.89016716]
[1750061594099,6.2155223,157.36,157.31,12.57239726]
[1750061594416,6.2155223,157.35,157.31,6.35687496]
[1750061595195,6.2155223,157.35,157.31,22.24906236]
[1750061595392,0.28432314,157.41,157.33,6.2155223]
[1750061595726,6.2155223,157.37,157.34,6.35566289]
[1750061596589,6.2155223,157.38,157.34,6.35566289]
[1750061599236,6.2155223,157.38,157.34,22.24482012]
[1750061599908,6.2155223,157.37,157.34,22.24482012]
[1750061600615,6.2155223,157.38,157.34,28.46034242]
[1750061601423,6.2155223,157.39,157.34,28.46034242]
[1750061602495,6.2155223,157.39,157.32,18.64964886]
[1750061602698,6.2155223,157.38,157.34,6.2155223]
[1750061604229,6.2155223,157.38,157.35,6.35525897]
[1750061605125,6.2155223,157.38,157.35,22.24340641]
[1750061606126,6.2155223,157.38,157.35,15.88814744]
[1750061606838,186.16774908,157.42,157.35,15.88814744]
[1750061607008,6.2155223,157.38,157.35,15.88814744]
[1750061607207,6.2155223,157.38,157.35,22.24340641]
[1750061609934,6.2155223,157.36,157.35,6.35525897]
[1750061610627,6.2155223,157.36,157.35,5.85525897]
[1750061610949,6.2155223,157.36,157.32,22.24672888]
[1750061612209,6.2155223,157.36,157.32,28.46225118]
[1750061617143,6.2155223,157.36,157.32,22.1057803]
[1750061618126,6.2155223,157.36,157.32,15.890258]
[1750061618339,6.2155223,157.36,157.32,28.46225118]
[1750061619832,6.2155223,157.35,157.32,22.24672888]
[1750061620244,6.2155223,157.35,157.32,15.890258]
[1750061621151,6.2155223,157.36,157.32,15.890258]
[1750061622153,6.2155223,157.36,157.32,22.24672888]
[1750061622643,6.2155223,157.34,157.32,6.35647088]
[1750061622856,6.2155223,157.35,157.32,6.35647088]
[1750061623552,6.2155223,157.35,157.31,6.35687496]
[1750061623727,6.2155223,157.33,157.31,6.35687496]
[1750061625229,6.2155223,157.33,157.29,22.25102304]
[1750061626227,6.2155223,157.32,157.29,22.25102304]
[1750061626732,6.2155223,157.33,157.29,22.25102304]
[1750061628350,6.2155223,157.32,157.29,15.89333978]
[1750061629230,6.2155223,157.32,157.29,22.25102304]
[1750061630664,6.2155223,157.31,157.29,22.25102304]
[1750061630861,3.98769488,157.31,157.29,22.25102304]
[1750061631032,3.98769488,157.31,157.29,6.35768326]
[1750061631357,3.98769488,157.3,157.27,6.35849176]
[1750061632857,6.23213433,157.3,157.26,22.25540018]
[1750061633035,6.23213433,157.29,157.26,22.25540018]
[1750061636053,6.23213433,157.3,157.26,22.25540018]
[1750061637153,6.23213433,157.31,157.26,28.48753451]
[1750061637458,26.0,157.35,157.28,6.23213433]
[1750061637632,148.6028,157.36,157.29,6.23213433]
[1750061637831,6.23213433,157.34,157.3,6.23213433]
[1750061638258,148.6028,157.36,157.3,6.23213433]
[1750061638555,153.23213433,157.36,157.31,6.23213433]
[1750061638947,153.23213433,157.36,157.32,6.23213433]
[1750061639143,153.23213433,157.36,157.29,0.14216157]
[1750061639144,15.58583166,157.37,157.33,28.47836835]
[1750061639461,21.81796599,157.37,157.33,28.47836835]
[1750061640048,15.58583166,157.37,157.35,6.23213433]
[1750061640840,6.23213433,157.39,157.35,6.23213433]
[1750061641041,6.23213433,157.39,157.36,6.3548551]
[1750061642960,1.543,157.4,157.36,22.24199287]
[1750061643158,8.33333333,157.42,157.38,6.23213433]
[1750061643360,14.56546766,157.42,157.38,6.23213433]
[1750061643555,14.56546766,157.42,157.37,6.23213433]
[1750061645273,6.23213433,157.39,157.38,6.35404752]
[1750061647378,6.23213433,157.39,157.36,15.88713777]
[1750061647379,6.23213433,157.39,157.33,26.0]
[1750061647594,8.33333333,157.42,157.28,11.75213433]
[1750061647595,6.23213433,157.35,157.34,6.35566289]
[1750061648662,6.23213433,157.35,157.32,6.35647088]
[1750061648863,6.23213433,157.34,157.32,6.35647088]
[1750061649872,6.23213433,157.34,157.31,6.35687496]
[1750061650250,6.23213433,157.33,157.31,6.35687496]
[1750061650454,6.23213433,157.32,157.31,6.35687496]
[1750061650668,6.23213433,157.33,157.31,6.35687496]
[1750061650869,6.23213433,157.34,157.31,6.35687496]
[1750061652677,6.23213433,157.34,157.29,22.12620788]
[1750061653182,1.6575,157.38,157.29,22.12620788]
[1750061653480,6.23213433,157.33,157.29,22.12620788]
[1750061653879,6.23213433,157.34,157.29,28.48389114]
[1750061656288,6.23213433,157.34,157.3,6.23213433]
[1750061656981,6.23213433,157.34,157.29,15.89407355]
[1750061657185,6.23213433,157.34,157.3,6.23213433]
[1750061658656,6.23213433,157.35,157.31,6.35687496]
[1750061659266,6.23213433,157.35,157.31,22.24906236]
[1750061659478,6.23213433,157.36,157.31,28.48119669]
[1750061659778,6.23213433,157.38,157.34,6.23213433]
[1750061660880,6.23213433,157.38,157.33,6.23213433]
[1750061661956,6.23213433,157.37,157.33,6.23213433]
[1750061662158,6.23213433,157.37,157.31,48.12906236]
[1750061662382,6.23213433,157.36,157.32,6.23213433]
[1750061662759,6.23213433,157.36,157.31,54.36119669]
[1750061663771,6.23213433,157.36,157.32,6.23213433]
[1750061664086,6.23213433,157.37,157.33,6.23213433]
[1750061664788,6.23213433,157.37,157.32,6.23213433]
[1750061665672,6.23213433,157.37,157.33,6.35606686]
[1750061666684,6.23213433,157.37,157.33,12.58820119]
[1750061670259,6.23213433,157.36,157.33,6.35606686]
[1750061670496,6.23213433,157.37,157.33,12.58820119]
[1750061673564,6.23213433,157.37,157.33,6.35606686]
[1750061673881,6.23213433,157.36,157.33,6.35606686]
[1750061675784,6.23213433,157.36,157.31,22.24906236]
[1750061675994,6.23213433,157.36,157.31,28.48119669]
[1750061676877,6.23213433,157.36,157.32,6.23213433]
[1750061678098,6.23213433,157.36,157.33,6.35606686]
[1750061680377,6.23213433,157.36,157.32,6.35647088]
[1750061683508,0.28432314,157.39,157.32,6.35647088]
[1750061683683,6.23213433,157.36,157.32,6.35647088]
[1750061684701,6.23213433,157.35,157.32,6.35647088]
[1750061684909,0.28432314,157.39,157.32,6.35647088]
[1750061685120,6.23213433,157.35,157.31,28.48119669]
[1750061686118,6.23213433,157.36,157.31,28.48119669]
[1750061687297,6.23213433,157.36,157.31,22.24906236]
[1750061687510,6.23213433,157.36,157.31,28.48119669]
[1750061688809,3.98559449,157.36,157.31,26.23465685]
[1750061695409,3.98559449,157.36,157.31,22.24906236]
[1750061695609,3.98559449,157.36,157.31,26.23465685]
[1750061696720,3.98559449,157.36,157.31,22.24906236]
[1750061696920,3.98559449,157.36,157.31,26.23465685]
[1750061697731,5.03481661,157.39,157.31,26.23465685]
[1750061698018,3.98559449,157.35,157.31,22.24906236]
[1750061698413,3.98559449,157.35,157.31,26.23465685]
[1750061700131,3.98559449,157.36,157.31,26.23465685]
[1750061700815,3.98559449,157.38,157.33,3.98559449]
[1750061701126,8.73608796,157.39,157.34,3.98559449]
[1750061701332,3.98559449,157.39,157.34,3.98559449]
[1750061701733,3.98559449,157.39,157.35,3.98559449]
[1750061702109,8.33333333,157.43,157.38,3.98559449]
[1750061702333,8.33333333,157.43,157.39,3.98559449]
[1750061702636,3.98559449,157.4,157.33,29.98559449]
[1750061702810,3.98559449,157.38,157.34,6.35566289]
[1750061703011,3.98559449,157.39,157.34,10.34125738]
[1750061703231,3.98559449,157.39,157.34,26.23041461]
[1750061703410,3.98559449,157.38,157.34,22.24482012]
[1750061703613,3.98559449,157.39,157.34,26.23041461]
[1750061704833,6.22509574,157.39,157.34,28.46991586]
[1750061707340,30.75669507,157.42,157.36,6.3548551]
[1750061707539,6.22509574,157.42,157.37,6.22509574]
[1750061708535,6.22509574,157.42,157.38,6.35404752]
[1750061709739,6.22509574,157.42,157.34,6.22509574]
[1750061709740,6.22509574,157.39,157.34,6.22509574]
[1750061709929,6.22509574,157.39,157.35,6.22509574]
[1750061710448,26.0,157.42,157.35,6.22509574]
[1750061710654,6.22509574,157.39,157.35,6.22509574]
[1750061710855,6.22509574,157.37,157.33,22.24593172]
[1750061711140,6.22509574,157.39,157.35,6.22509574]
[1750061711334,6.22509574,157.39,157.33,22.24593172]
[1750061711536,6.22509574,157.39,157.35,6.22509574]
[1750061711741,6.22509574,157.39,157.33,22.24593172]
[1750061711955,6.22509574,157.39,157.35,6.22509574]
[1750061712323,30.75669507,157.42,157.35,6.22509574]
[1750061712558,6.22509574,157.39,157.36,6.3548551]
[1750061713549,6.22509574,157.4,157.36,6.3548551]
[1750061713726,6.22509574,157.4,157.36,12.57995084]
[1750061715137,6.22509574,157.4,157.35,22.1131368]
[1750061715871,6.22509574,157.39,157.35,22.1131368]
[1750061716472,6.22509574,157.39,157.35,28.46839577]
[1750061717934,6.22509574,157.39,157.35,15.88804106]
[1750061718469,6.22509574,157.39,157.35,22.1131368]
[1750061718638,6.22509574,157.4,157.36,6.22509574]
[1750061718836,6.22509574,157.42,157.38,6.22509574]
[1750061720048,6.22509574,157.42,157.39,6.35364381]
[1750061720361,6.22509574,157.41,157.39,6.35364381]
[1750061720738,4.75669507,157.44,157.39,6.35364381]
[1750061720942,6.22509574,157.42,157.39,6.35364381]
[1750061721443,4.75669507,157.44,157.39,6.35364381]
[1750061721640,6.22509574,157.44,157.4,6.22509574]
[1750061721860,6.22509574,157.44,157.39,12.57873955]
[1750061722062,6.22509574,157.43,157.39,12.57873955]
[1750061722472,4.75669507,157.45,157.39,6.35364381]
[1750061722655,151.95436509,157.46,157.4,6.22509574]
[1750061722847,6.22509574,157.44,157.4,6.22509574]
[1750061723248,6.22509574,157.44,157.39,28.46284908]
[1750061723650,151.95436509,157.46,157.39,28.46284908]
[1750061723854,6.22509574,157.44,157.39,28.46284908]
[1750061724067,6.22509574,157.43,157.39,22.23775334]
[1750061724368,151.95436509,157.46,157.39,28.46284908]
[1750061724749,6.22509574,157.43,157.39,28.46284908]
[1750061725843,6.22509574,157.42,157.39,6.35364381]
[1750061726090,6.22509574,157.41,157.39,6.35364381]
[1750061726269,6.22509574,157.41,157.38,6.35404752]
[1750061727058,6.22509574,157.4,157.38,6.35404752]
[1750061727571,9.66650862,157.44,157.38,6.35404752]
[1750061727750,6.22509574,157.4,157.38,6.35404752]
[1750061728249,6.22509574,157.4,157.37,6.35445129]
[1750061729880,3.31484666,157.44,157.37,12.57954703]
[1750061730169,6.22509574,157.43,157.38,6.22509574]
[1750061730372,6.22509574,157.42,157.38,6.22509574]
[1750061730746,6.22509574,157.42,157.37,28.46567526]
[1750061732055,6.22509574,157.42,157.37,22.24057952]
[1750061732369,6.22509574,157.42,157.37,28.46567526]
[1750061733774,6.22509574,157.41,157.37,6.35445129]
[1750061734177,4.73345808,157.45,157.37,12.57954703]
[1750061734355,6.22509574,157.43,157.38,6.22509574]
[1750061734554,4.73345808,157.45,157.38,6.22509574]
[1750061734744,6.22509574,157.43,157.38,6.22509574]
[1750061734948,6.22509574,157.42,157.37,12.57954703]
[1750061735151,6.22509574,157.4,157.37,6.35445129]
[1750061735866,6.22509574,157.39,157.37,6.35445129]
[1750061736077,6.22509574,157.39,157.35,6.35525897]
[1750061736366,6.22509574,157.38,157.35,6.35525897]
[1750061737552,6.22509574,157.37,157.35,6.35525897]
[1750061738450,6.22509574,157.37,157.34,6.35566289]
[1750061741681,6.22509574,157.38,157.34,6.35566289]
[1750061742086,6.22509574,157.38,157.33,28.47095805]
[1750061742583,6.22509574,157.37,157.33,28.47095805]
[1750061743279,6.22509574,157.34,157.3,15.89231326]
[1750061743480,6.22509574,157.34,157.29,6.28432314]
[1750061743481,6.22509574,157.33,157.31,6.35687496]
[1750061743683,6.22509574,157.32,157.3,6.35715357]
[1750061747260,6.22509574,157.33,157.3,6.35715357]
[1750061747863,6.22509574,157.32,157.3,6.35715357]
[1750061748059,6.22509574,157.31,157.29,12.35755779]
[1750061748376,1.5007,157.35,157.29,12.35758545]
[1750061748565,6.22509574,157.3,157.29,12.35758545]
[1750061749469,6.22509574,157.3,157.29,6.0]
[1750061749988,6.22509574,157.3,157.29,12.35768326]
[1750061750974,33.85608489,157.35,157.29,12.35768326]
[1750061751293,6.22509574,157.31,157.29,12.35768326]
[1750061751468,27.5007,157.35,157.29,12.35768326]
[1750061751985,6.22509574,157.33,157.29,12.35768326]
[1750061752364,6.22509574,157.33,157.29,6.35768326]
[1750061753183,27.5007,157.35,157.29,12.582779]
[1750061753386,6.22509574,157.33,157.29,12.582779]
[1750061753777,6.22509574,157.33,157.29,6.35768326]
[1750061759888,6.22509574,157.31,157.29,6.35768326]
[1750061760278,6.22509574,157.3,157.27,6.35809268]
[1750061760476,6.22509574,157.29,157.27,6.35809268]
[1750061760682,6.22509574,157.29,157.25,6.35930047]
[1750061763394,6.22509574,157.28,157.25,6.35930047]
[1750061764384,6.22509574,157.27,157.25,6.35930047]
[1750061764587,6.22509574,157.27,157.23,6.36010939]
[1750061764795,6.22509574,157.28,157.23,12.58520513]
[1750061765309,6.22509574,157.28,157.23,28.48547861]
[1750061765678,6.22509574,157.29,157.23,22.26038287]
[1750061765984,6.22509574,157.28,157.23,28.48547861]
[1750061766502,6.22509574,157.28,157.23,22.26038287]
[1750061766708,6.22509574,157.28,157.23,28.48547861]
[1750061767497,32.35651591,157.32,157.23,28.48547861]
[1750061767498,6.22509574,157.27,157.23,6.36010939]
[1750061767699,6.22509574,157.26,157.23,6.36010939]
[1750061768688,6.22509574,157.26,157.22,6.36051392]
[1750061769587,6.22509574,157.29,157.24,6.22509574]
[1750061769986,6.22509574,157.28,157.24,6.22509574]
[1750061771384,6.22509574,157.26,157.21,6.36091851]
[1750061771805,6.22509574,157.26,157.21,6.22509574]
[1750061772293,6.22509574,157.26,157.22,6.22509574]
[1750061772511,18.933972,157.27,157.22,6.22509574]
[1750061772816,147.0,157.29,157.26,6.22509574]
[1750061773110,147.0,157.29,157.28,12.58318322]
[1750061773300,6.2216,157.33,157.28,12.58318322]
[1750061773301,32.2216,157.33,157.28,12.58318322]
[1750061773507,6.2216,157.33,157.29,6.22509574]
[1750061773710,9.53841889,157.33,157.29,6.22509574]
[1750061773892,41.76351463,157.33,157.29,6.22509574]
[1750061774491,41.76351463,157.33,157.28,12.58318322]
[1750061775021,6.22509574,157.32,157.28,6.35808748]
[1750061776990,41.76351463,157.33,157.28,6.22509574]
[1750061777596,18.933972,157.32,157.28,6.22509574]
[1750061778211,18.933972,157.32,157.25,15.89783601]
[1750061778522,18.933972,157.32,157.29,6.22509574]
[1750061781002,3.31681889,157.33,157.31,6.22509574]
[1750061781202,147.0,157.34,157.32,6.22509574]
[1750061783694,147.0,157.34,157.32,12.58155641]
[1750061783894,147.0,157.34,157.32,6.22509574]
[1750061784606,147.0,157.34,157.31,12.58188442]
[1750061785520,147.0,157.34,157.31,6.22509574]
[1750061787002,147.0,157.34,157.31,12.58175575]
[1750061787616,147.0,157.34,157.31,6.35666001]
[1750061787826,147.0,157.34,157.31,6.22509574]
[1750061789135,147.0,157.34,157.32,6.22509574]
[1750061789501,147.0,157.34,157.31,6.22509574]
[1750061791213,147.0,157.34,157.31,12.58196378]
[1750061791415,147.0,157.34,157.31,6.22509574]
[1750061791931,147.0,157.34,157.31,12.58192907]
[1750061795533,147.0,157.34,157.31,6.22509574]
[1750061795739,153.22509574,157.34,157.3,6.35716823]
[1750061795940,153.22509574,157.34,157.3,12.58226397]
[1750061798027,153.22509574,157.34,157.29,12.58262264]
[1750061799229,153.22509574,157.34,157.3,6.22509574]
[1750061799431,147.0,157.34,157.31,6.22509574]
[1750061799649,153.22509574,157.34,157.3,6.22509574]
[1750061800553,153.22509574,157.34,157.29,12.58262264]
[1750061801353,153.22509574,157.34,157.26,6.35889609]
[1750061801560,6.22509574,157.33,157.28,6.22509574]
[1750061802046,6.22509574,157.33,157.29,6.22509574]
[1750061802935,147.0,157.34,157.29,12.58275124]
[1750061803125,6.22509574,157.33,157.29,12.58275124]
[1750061804458,153.22509574,157.34,157.29,12.58275124]
[1750061805464,147.0,157.34,157.3,6.22509574]
[1750061807732,153.22509574,157.34,157.3,12.58237071]
[1750061809140,147.0,157.34,157.3,12.58237071]
[1750061809828,147.0,157.34,157.31,6.22509574]
[1750061810145,50.35181043,157.37,157.33,6.22509574]
[1750061810345,44.14909574,157.37,157.33,6.22509574]
[1750061810650,32.22509574,157.37,157.33,6.22509574]
[1750061810949,32.22509574,157.37,157.32,6.22509574]
[1750061811176,26.0,157.37,157.32,12.58136512]
[1750061811326,6.22509574,157.36,157.32,12.58136512]
[1750061812231,17.87367478,157.38,157.34,6.22509574]
[1750061812445,14.55766132,157.38,157.35,6.22509574]
[1750061813056,14.55766132,157.38,157.35,12.5799651]
[1750061814050,14.55766132,157.38,157.35,6.35486936]
[1750061814248,14.55766132,157.38,157.34,12.58059766]
[1750061814557,6.22509574,157.36,157.3,6.35727908]
[1750061814737,6.22509574,157.34,157.3,12.58237482]
[1750061814938,6.22509574,157.35,157.3,12.58237482]
[1750061815574,6.22509574,157.34,157.3,12.58237482]
[1750061817377,25.288479,157.37,157.3,12.58237482]
[1750061817588,18.933972,157.3,157.24,6.3597049]
[1750061817739,6.22509574,157.25,157.19,6.1569]
[1750061817943,6.22509574,157.22,157.15,6.0442]
[1750061818144,20.532872,157.26,157.18,6.22509574]
[1750061818343,6.22509574,157.23,157.19,6.22509574]
[1750061819376,6.22509574,157.23,157.19,12.58656012]
[1750061819743,4.73770733,157.22,157.19,12.58656012]
[1750061820037,6.22509574,157.23,157.19,12.58656012]
[1750061820244,6.22509574,157.2,157.15,6.36334712]
[1750061820541,18.933972,157.23,157.15,6.36334712]
[1750061820542,44.933972,157.23,157.17,6.22509574]
[1750061820740,32.22509574,157.23,157.18,6.22509574]
[1750061820966,4.73794991,157.22,157.18,6.22509574]
[1750061821140,26.0,157.23,157.18,6.22509574]
[1750061821344,4.73794471,157.22,157.2,6.36132315]
[1750061821538,4.73806369,157.21,157.2,6.36132315]
[1750061822245,4.73806369,157.21,157.16,6.36294222]
[1750061822454,4.75009811,157.2,157.16,12.58803796]
[1750061822763,4.75009811,157.19,157.16,12.58803796]
[1750061822948,4.75009811,157.18,157.16,12.58803796]
[1750061823290,4.74963087,157.17,157.16,12.58803796]
[1750061823458,6.22509574,157.2,157.16,12.58803796]
[1750061824079,4.74901214,157.19,157.16,12.58803796]
[1750061824283,6.22509574,157.2,157.16,6.36294222]
[1750061824446,6.22509574,157.19,157.16,6.36294222]
[1750061824768,4.74839149,157.18,157.16,6.36294222]
[1750061824957,4.74839149,157.17,157.15,6.36325063]
[1750061825168,4.74826982,157.16,157.15,6.36325063]
[1750061825347,6.22509574,157.19,157.15,6.36325063]
[1750061825955,4.74869924,157.18,157.15,6.36325063]
[1750061826152,6.22509574,157.19,157.15,6.36325063]
[1750061826671,4.74899934,157.18,157.15,6.36325063]
[1750061826873,4.74893711,157.17,157.15,6.36325063]
[1750061827042,6.22509574,157.19,157.15,6.36325063]
[1750061827381,4.74886891,157.18,157.15,6.36325063]
[1750061827572,4.74861351,157.17,157.15,6.36325063]
[1750061827974,4.74861351,157.16,157.15,6.36325063]
[1750061828267,6.22509574,157.19,157.15,6.36325063]
[1750061828642,4.74910841,157.18,157.15,6.36325063]
[1750061828842,6.22509574,157.19,157.15,6.36325063]
[1750061829053,4.75000261,157.18,157.15,6.36325063]
[1750061829266,6.22509574,157.19,157.15,6.36325063]
[1750061829445,4.75255598,157.18,157.15,6.36325063]
[1750061829652,4.75269464,157.17,157.15,6.36325063]
[1750061829856,6.22509574,157.19,157.15,6.36325063]
[1750061830055,4.75275149,157.18,157.15,6.36325063]
[1750061830282,4.75275149,157.17,157.15,6.36325063]
[1750061830568,6.22509574,157.18,157.15,6.36325063]
[1750061830772,4.75295204,157.17,157.15,6.36325063]
[1750061830945,4.75297821,157.16,157.15,6.36325063]
[1750061831146,4.7529792,157.16,157.14,23.04407053]
[1750061831354,4.75276886,157.15,157.14,23.04407053]
[1750061831555,4.75281333,157.15,157.14,29.40772717]
[1750061831862,6.22509574,157.17,157.14,29.40772717]
[1750061832062,4.75309361,157.16,157.14,29.40772717]
[1750061832281,10.97788145,157.15,157.14,23.04407053]
[1750061832487,10.97788145,157.15,157.1,6.36503292]
[1750061832785,6.22509574,157.12,157.1,6.36503292]
[1750061833071,6.22509574,157.13,157.09,6.36577757]
[1750061833275,4.7510654,157.12,157.09,6.36577757]
[1750061833473,4.75094732,157.11,157.09,6.36577757]
[1750061833644,4.75099191,157.1,157.09,6.36577757]
[1750061833849,6.22509574,157.13,157.09,6.36577757]
[1750061834257,4.75084382,157.12,157.09,6.36577757]
[1750061834458,4.75084382,157.11,157.09,6.36577757]
[1750061834645,4.75074768,157.1,157.09,12.59087331]
[1750061835076,4.75057997,157.1,157.09,12.59087331]
[1750061835260,4.75035269,157.1,157.09,28.50531725]
[1750061835466,4.75084596,157.1,157.09,28.50531725]
[1750061835975,4.75066946,157.1,157.09,28.50531725]
[1750061836172,6.22509574,157.15,157.09,28.50531725]
[1750061836376,4.75076659,157.14,157.11,6.22509574]
[1750061836680,6.22509574,157.15,157.11,6.22509574]
[1750061836855,6.22509574,157.16,157.11,6.22509574]
[1750061837056,4.75077041,157.15,157.11,6.22509574]
[1750061837271,4.75077365,157.14,157.12,6.36456211]
[1750061837479,4.75077365,157.13,157.12,6.36456211]
[1750061837782,4.75077414,157.13,157.12,6.36456211]
[1750061838285,4.751349,157.13,157.12,6.36456211]
[1750061838587,4.7513487,157.13,157.12,6.36456211]
[1750061838751,4.75134864,157.13,157.12,12.58965785]
[1750061839080,10.97652308,157.13,157.08,28.50673566]
[1750061839286,32.36296183,157.16,157.08,22.28163992]
[1750061839287,10.97642605,157.12,157.08,22.28163992]
[1750061839452,4.75133031,157.11,157.08,6.36618283]
[1750061839656,4.75133031,157.1,157.08,6.36618283]
[1750061839971,4.75099027,157.09,157.08,12.59127857]
[1750061840286,6.22509574,157.13,157.08,12.59127857]
[1750061840466,4.75116673,157.12,157.08,12.59127857]
[1750061840662,4.75106295,157.11,157.08,12.59127857]
[1750061840862,6.22509574,157.13,157.08,12.59127857]
[1750061841216,4.75097723,157.12,157.08,12.59127857]
[1750061841358,6.22509574,157.13,157.08,12.59127857]
[1750061841554,4.75093415,157.12,157.08,12.59127857]
[1750061841853,6.22509574,157.13,157.08,12.59127857]
[1750061842053,4.75093871,157.12,157.08,12.59127857]
[1750061842293,4.75094275,157.11,157.08,12.59127857]
[1750061842496,4.75076667,157.1,157.08,12.59127857]
[1750061842694,6.22509574,157.13,157.08,12.59127857]
[1750061843001,4.75079826,157.12,157.08,12.59127857]
[1750061843184,4.7507844,157.11,157.08,12.59127857]
[1750061843380,4.7507844,157.1,157.08,12.59127857]
[1750061843582,4.75078217,157.09,157.08,12.59127857]
[1750061843786,6.22509574,157.13,157.08,12.59127857]
[1750061843982,10.97585395,157.12,157.08,12.59127857]
[1750061844183,6.22509574,157.12,157.08,12.59127857]
[1750061844877,6.22509574,157.12,157.08,6.36618283]
[1750061845070,6.22509574,157.1,157.05,6.36739891]
[1750061845275,6.22509574,157.1,157.05,12.59249465]
[1750061845576,4.7499568,157.09,157.06,6.22509574]
[1750061845796,4.74995684,157.08,157.07,6.22509574]
[1750061845997,7.87509574,157.12,157.07,6.22509574]
[1750061846226,4.75062269,157.11,157.08,6.22509574]
[1750061846417,4.75062269,157.1,157.08,6.22509574]
[1750061846577,6.22509574,157.12,157.05,48.2858962]
[1750061846779,6.22509574,157.12,157.08,6.22509574]
[1750061847505,6.22509574,157.12,157.09,6.36577757]
[1750061852891,6.22509574,157.11,157.09,6.36577757]
[1750061853897,6.22509574,157.12,157.09,6.36577757]
[1750061854609,4.75024681,157.11,157.07,1.44602998]
[1750061854908,6.22509574,157.12,157.07,1.44602998]
[1750061854909,4.75023884,157.1,157.07,1.44602998]
[1750061855108,6.22509574,157.12,157.07,1.44602998]
[1750061855314,4.75024051,157.11,157.07,1.44602998]
[1750061855629,4.75023884,157.1,157.07,1.44602998]
[1750061855799,6.22509574,157.12,157.07,1.44602998]
[1750061856005,4.75032168,157.11,157.05,22.2858962]
[1750061856214,4.75032168,157.1,157.07,6.22509574]
[1750061856408,4.75018799,157.09,157.07,6.22509574]
[1750061856617,4.75018801,157.08,157.07,6.22509574]
[1750061856801,4.75033795,157.08,157.07,6.22509574]
[1750061857010,4.7503347,157.08,157.07,6.22509574]
[1750061857316,4.75030953,157.08,157.07,6.22509574]
[1750061857685,4.75028111,157.08,157.07,6.22509574]
[1750061857928,4.75012895,157.08,157.07,12.59168388]
[1750061858225,4.75047834,157.08,157.07,12.59168388]
[1750061858402,6.22509574,157.12,157.07,12.59168388]
[1750061858610,4.75046256,157.11,157.07,6.36658814]
[1750061858907,4.75090209,157.1,157.09,6.36577757]
[1750061859290,4.75075216,157.1,157.09,6.36577757]
[1750061859612,4.75110298,157.1,157.09,6.36577757]
[1750061859797,6.22509574,157.13,157.09,6.36577757]
[1750061859997,4.7512014,157.12,157.09,6.36577757]
[1750061860215,4.75119918,157.11,157.09,6.36577757]
[1750061860389,4.75125612,157.1,157.09,6.36577757]
[1750061860594,4.75120708,157.1,157.09,6.22509574]
[1750061860813,4.75190802,157.1,157.09,6.22509574]
[1750061861111,4.75219574,157.1,157.09,6.22509574]
[1750061861319,4.75220556,157.1,157.09,6.22509574]
[1750061861493,4.75220526,157.1,157.09,6.22509574]
[1750061861693,4.75230956,157.1,157.09,6.22509574]
[1750061861896,4.7523528,157.1,157.09,6.22509574]
[1750061862115,4.75233118,157.1,157.09,6.22509574]
[1750061862308,4.75223192,157.1,157.09,6.22509574]
[1750061862806,6.22509574,157.15,157.1,6.36537237]
[1750061863125,4.75337099,157.14,157.11,6.22509574]
[1750061863298,4.75355918,157.13,157.11,6.22509574]
[1750061863617,4.75425143,157.12,157.11,12.59006296]
[1750061863920,6.22509574,157.15,157.11,6.36496722]
[1750061864097,4.75586274,157.14,157.11,12.59006296]
[1750061864305,4.75603798,157.13,157.11,12.59006296]
[1750061864500,7.79899574,157.16,157.11,12.59006296]
[1750061864722,4.75631973,157.15,157.11,12.59006296]
[1750061864907,4.7566362,157.14,157.11,12.59006296]